Cogmind - Beta 9.6 @@@ ROGUE MODE // 2020.06.21 @ 17:36:48 Player: RNGesus Result: Destroyed self with Grenade Launcher Performance ------------- Evolutions (0) 0 Regions Visited (2) 400 Robots Destroyed (33) 165 Value Destroyed (551) 551 Prototype IDs (0) 0 Alien Tech Used (0) 0 Bonus (62) 62 TOTAL SCORE: 1178 Bonus ------- High Alert Combat Kills 2 Follower Combat Kills 60 Cogmind --------- Core Integrity 0/250 Matter 260/300 Energy 85/100 System Corruption 1% Temperature Cool (0) Movement Core (350) Ox6 Location -10/Mines Parts ------- > --- POWER (1) -------- (None) > --- PROPULSION (2) --- (None) > --- UTILITY (2) ------ Large Storage Unit > --- WEAPON (2) ------- Grenade Launcher > --- INVENTORY (10) --- Aluminum Leg Small Storage Unit Medium Storage Unit Medium Laser Medium Laser Light Assault Rifle Peak State ------------ > --- POWER ------------ Ion Engine > --- PROPULSION ------- Aluminum Leg Aluminum Leg > --- UTILITY ---------- Medium Storage Unit Hacking Suite > --- WEAPON ----------- Assault Rifle Light Assault Rifle > --- INVENTORY -------- Aluminum Leg Small Storage Unit Medium Laser Grenade Launcher [Rating: 9] Favorites ----------- Power Ion Engine Engine Ion Engine Propulsion Aluminum Leg Leg Aluminum Leg Utility Medium Storage Unit Storage Medium Storage Unit Processor Targeting Computer Hackware Hacking Suite Weapon Small Laser Energy Gun Small Laser Ballistic Gun Light Assault Rifle Launcher Grenade Launcher Build | -11 -10 -10 ------- Run | Scr Mat Min Slots Evolved . | . . . Power . | . . . Propulsion . | . . . Utility . | . . . Weapon . | . . . Parts Attached 29 | 7 17 5 Power 4 | 2 2 . Engine 4 | 2 2 . Core . | . . . Reactor . | . . . Propulsion 6 | 2 4 . Treads . | . . . Leg 6 | 2 4 . Wheel . | . . . Hover . | . . . Flight . | . . . Utility 6 | 1 3 2 Device . | . . . Storage 4 | 1 2 1 Processor 1 | . 1 . Hackware 1 | . . 1 Protection . | . . . Artifact . | . . . Weapon 13 | 2 8 3 Energy Gun 7 | 1 6 . Energy Cannon . | . . . Ballistic Gun 4 | 1 2 1 Ballistic Cannon . | . . . Launcher 2 | . . 2 Special Weapon . | . . . Impact Weapon . | . . . Slashing Weapon . | . . . Piercing Weapon . | . . . Special Melee Weapon . | . . . Unidentified Prototypes . | . . . Parts Lost 20 | . 13 7 Power 3 | . 2 1 Propulsion 5 | . 3 2 Utility 2 | . 1 1 Weapon 10 | . 7 3 Highest Loss Streak 6 | . 5 6 Average Slot Usage (%) 85 | . 82 95 Engine 10 | . 9 13 Leg 27 | . 27 27 Storage 14 | . 14 14 Processor 1 | . 2 . Hackware 3 | . . 11 Energy Gun 13 | . 17 2 Ballistic Gun 14 | . 10 24 Naked Turns . | . . . Heaviest Build 24 | 13 15 24 Greatest Support 20 | 20 20 20 Greatest Overweight (x) 4 | 4 1 1 Average Overweight (x) . | . . . Largest Inventory Capacity 10 | 6 8 10 Average Capacity 7 | 5 6 8 Most Carried 7 | 2 7 7 Average Carried 4 | 1 4 5 Final Capacity 10 | 6 8 10 Final Carried 6 | 2 5 6 Class Distribution -------------------- 65% | Mutant 34% | Scavenger-Mutant Dominant Class ---------------- Mutant | -10/Materials Scavenger-Mutant | -10/Mines Resources | -11 -10 -10 ----------- Run | Scr Mat Min Matter Collected 612 | 260 295 57 Remotely . | . . . Salvage Created 795 | . 759 36 Parts 42 | . 40 2 Haulers Intercepted 2 | . 2 . Recyclers Shooed . | . . . Parts Field Recycled . | . . . Retrieved Matter . | . . . Parts Self-Destructed . | . . . Prevented . | . . . Kills | -11 -10 -10 ------- Run | Scr Mat Min Combat Hostiles Destroyed 26 | . 20 6 Guns 22 | . 20 2 AOE 4 | . . 4 Classes Destroyed 7 | . 6 1 Worker 2 | . 2 . Hauler 2 | . 2 . Operator 2 | . 2 . Watcher 1 | . 1 . Swarmer 11 | . 9 2 Grunt 11 | . 11 . Assembled 4 | . . 4 Best Kill Streak 11 | . 11 4 Combat Bots Only 8 | . 8 4 Max Kills in Single Turn 2 | . 1 2 Gunslinging . | . . . Exploded 2 | . . 2 Melee . | . . . Uniques/NPCs Destroyed . | . . . Combat | -11 -10 -10 -------- Run | Scr Mat Min Damage Taken 1575 | . 1006 569 Core 252 | . 134 118 Absorbed by Shields . | . . . Core Remaining (%) 100 | 100 . . Volleys Fired 111 | . 94 17 Largest 2 | . 2 2 Hottest 80 | . 80 60 Shots Fired 214 | . 182 32 Gun 211 | . 182 29 Cannon . | . . . Launcher 3 | . . 3 Special . | . . . Kinetic 101 | . 75 26 Thermal 110 | . 107 3 Explosive 3 | . . 3 Electromagnetic . | . . . Robot Hit Streak 16 | . 16 6 Robot Miss Streak 7 | . 7 4 Penetration Max . | . . . Secondary Targets 1 | . 1 . Max Gunslinging Chain 1 | . 1 . Shots Hit Robots 129 | . 106 23 Core Hits 60 | . 43 17 Critical Hits 1 | . . 1 Critical Kills . | . . . Critical Parts Destroyed 1 | . . 1 Melee Attacks . | . . . Impact . | . . . Slashing . | . . . Piercing . | . . . Sneak Attacks . | . . . Combat Hostiles . | . . . Follow-up Attacks . | . . . Damage Inflicted 1708 | . 1223 485 Guns 1394 | . 1223 171 Cannons . | . . . Explosions 314 | . . 314 Melee . | . . . Ramming . | . . . Kinetic 595 | . 446 149 Thermal 799 | . 777 22 Explosive 314 | . . 314 Electromagnetic . | . . . Impact . | . . . Slashing . | . . . Piercing . | . . . Highest Corruption 1 | . . 1 Average Corruption 1 | . . 1 Corruption Purged . | . . . Overload Shots . | . . . Overflow Damage 4 | . . 4 Projectiles . | . . . Explosions 4 | . . 4 Melee . | . . . Knockbacks . | . . . Impact . | . . . Kinetic . | . . . Secondary . | . . . Self-Inflicted Damage 76 | . . 76 Shots 2 | . . 2 Rammed . | . . . Targets Rammed . | . . . Kicked . | . . . Crushed . | . . . Highest Temperature 123 | . 123 20 Average Temperature 33 | . 34 12 Received Heat Transfer 466 | . 426 40 Siege Activations . | . . . Robots Corrupted . | . . . Combat Hostiles . | . . . Parts Fried . | . . . Impact Corruptions . | . . . Robots Melted . | . . . Combat Hostiles . | . . . Parts Melted 1 | . 1 . Heat Transferred 1932 | . 1882 50 Parts Sabotaged . | . . . Parts Stolen . | . . . Parts Stripped . | . . . Power Chain Reactions . | . . . Missiles Intercepted . | . . . Alert | -11 -10 -10 ------- Run | Scr Mat Min Peak Influence 412 | . 412 150 Average Influence 152 | . 183 101 Maximum Alert Level 2 | . 2 . Low Security (%) 63 | 100 46 100 Level 1 35 | . 52 . Level 2 1 | . 1 . Level 3 . | . . . Level 4 . | . . . Level 5 . | . . . High Security . | . . . Max Security . | . . . Squads Dispatched 4 | . 4 . Investigation 2 | . 2 . Extermination . | . . . Reinforcement 2 | . 2 . Assault . | . . . Garrison . | . . . Intercept . | . . . Construction Impeded . | . . . Haulers Reinforced . | . . . Stealth | -11 -10 -10 --------- Run | Scr Mat Min Distress Signals 4 | . 4 . Communications Jammed . | . . . Distress Signals . | . . . Times Spotted 54 | . 36 18 Peak Tracking Total 13 | . 6 13 Tactical Retreats 1 | . . 1 Traps | -11 -10 -10 ------- Run | Scr Mat Min Traps Triggered 1 | . 1 . Indirectly . | . . . Trap Hack Attempts . | . . . Triggered . | . . . Disarmed . | . . . Reprogrammed . | . . . Reused . | . . . Traps Extracted . | . . . Installed . | . . . Triggered . | . . . Machines | -11 -10 -10 ---------- Run | Scr Mat Min Machines Disabled . | . . . Max in Single Turn . | . . . Machines Sabotaged . | . . . Garrisons Compromised . | . . . Overloaded Fab Kills . | . . . Fab Network Shutdowns . | . . . Hacking | -11 -10 -10 --------- Run | Scr Mat Min Machines Accessed 2 | . 2 . Terminals 1 | . 1 . Fabricators . | . . . Repair Stations . | . . . Recycling Units 1 | . 1 . Scanalyzers . | . . . Garrison Access . | . . . Total Hacks 4 | . 4 . Successful 3 | . 3 . Failed 1 | . 1 . Catastrophic . | . . . Database Lockouts . | . . . Manual 2 | . 2 . Terminals 3 | . 3 . Fabricators . | . . . Repair Stations . | . . . Recycling Units 1 | . 1 . Scanalyzers . | . . . Garrison Access . | . . . Terminal Hacks 1 | . 1 . Branch Access Points 1 | . 1 . Fabricator Hacks . | . . . Repair Station Hacks . | . . . Recycling Unit Hacks . | . . . Scanalyzer . | . . . Garrison Access Hacks . | . . . Unauthorized Hacks 2 | . 2 . Terminals 1 | . 1 . Operators 1 | . 1 . Fabricators . | . . . Repair Stations . | . . . Recycling Units 1 | . 1 . Tunnel 1 | . 1 . Scanalyzers . | . . . Garrison Access . | . . . Data Cores Recovered . | . . . Used . | . . . Hacking Detections . | . . . Full Trace Events . | . . . Feedback Events . | . . . Feedback Blocked . | . . . Robot Schematics Acquired . | . . . Robots Built . | . . . Matter . | . . . Time . | . . . Total Robot Build Rating . | . . . Part Schematics Acquired . | . . . Parts Built . | . . . Matter . | . . . Time . | . . . Total Part Build Rating . | . . . Parts Repaired . | . . . Time . | . . . Parts Recycled . | . . . Recycled Matter . | . . . Retrieved Matter . | . . . Retrieved Components . | . . . Parts Scanalyzed . | . . . Part Schematics Acquired . | . . . Parts Damaged . | . . . Bothacking | -11 -10 -10 ------------ Run | Scr Mat Min Used RIF Installer . | . . . Robots Hacked . | . . . Non-combat . | . . . Combat . | . . . Robot Hacks Applied . | . . . Relay Couplers Released . | . . . Robots Rewired . | . . . Allies Hacked . | . . . Hacks Repelled . | . . . Allies | -11 -10 -10 -------- Run | Scr Mat Min Total Allies 3 | . . 3 Largest Group 3 | . . 3 Highest-Rated Group 40 | . . 40 Highest-Rated Ally 16 | . . 16 Total Orders . | . . . Ally Attacks 23 | . . 23 Total Damage 236 | . . 236 Kills 3 | . . 3 Allies Corrupted . | . . . Allies Melted . | . . . Intel | -11 -10 -10 ------- Run | Scr Mat Min Robot Analysis Total . | . . . Derelict Logs Recovered 2 | . . 2 Drone Launches . | . . . Drone Recoveries . | . . . Exploration | -11 -10 -10 ------------- Run | Scr Mat Min Turns Passed 1419 | 67 974 378 Spaces Moved 837 | 41 543 253 Core 14 | 14 . . Treads . | . . . Legs 823 | 27 543 253 Wheels . | . . . Hover . | . . . Flight . | . . . Fastest Speed 50 | 50 120 120 Average Speed 121 | 136 120 120 Slowest Speed 250 | 250 150 150 Overloaded Moves . | . . . Propulsion Burnouts . | . . . Robots Hopped . | . . . Cave-ins Triggered . | . . . Exploration Rate (%) 47 | 3 76 63 Regions Visited 2 Branch Regions 1 Pre-discovered Areas 2 | . 1 1 Known Exits Taken 1 | . 1 . Unknown Exits Taken 1 | 1 . . Scrap Searched 3 | . . 3 Spaces Dug . | . . . Terrain Destroyed 15 | . . 15 Melee . | . . . Projectile . | . . . AOE 15 | . . 15 Actions | -11 -10 -10 --------- Run | Scr Mat Min Total 1029 | 48 685 296 Wait 40 | . 22 18 Move 835 | 40 542 253 Hop . | . . . Pick Up 12 | 1 8 3 Fast Attach 12 | 6 6 . Attach 11 | . 8 3 Detach 1 | . 1 . Swap 6 | 1 3 2 Drop 1 | . 1 . Fire 111 | . 94 17 Melee . | . . . Ram . | . . . Kick . | . . . Crush . | . . . Escape Stasis . | . . . Rewire . | . . . Trap . | . . . Miscellaneous . | . . . Route ------- -11/Scrapyard -10/Materials (discovered 4 exits: [*Mat x2] / *Min x2) -10/Mines (discovered 1 exit: [*Mat]) History --------- Turn | Location | Event 10 | -11/Scrapyard | Discovered new exit (range 16) 68 | -11/Scrapyard | Entered Materials 107 | -10/Materials | Identified exit to Mines 324 | -10/Materials | Build established: Mutant 385 | -10/Materials | Discovered new exit (range 16) 395 | -10/Materials | Destroyed 8 combat bots 460 | -10/Materials | Lost 3 parts (1p2w) 693 | -10/Materials | Lost 5 parts (1p2n2w) 876 | -10/Materials | Discovered new exit (range 16) 918 | -10/Materials | Core integrity fell below 50% 950 | -10/Materials | Lost 4 parts (1n1u2w) 1042 | -10/Materials | Entered Mines 1053 | -10/Mines | Learned location of 1 exit from Materials 1073 | -10/Mines | Assisted by bots powering up and referring to "LRC-V3" 1181 | -10/Mines | Assisted by bots powering up and referring to "LRC-V3" 1216 | -10/Mines | Build established: Scavenger-Mutant 1338 | -10/Mines | Discovered new exit (range 5) 1374 | -10/Mines | Assembled infested the area 1379 | -10/Mines | Assisted by a Guerilla fighting off Assembled 1416 | -10/Mines | Core integrity fell below 20% 1420 | -10/Mines | Destroyed self with Grenade Launcher Last Messages --------------- 01392_ Found 26 Matter. 01392_ Found Lrg. Storage Unit. 01392_ Found Lrg. Matter Pod. 01393_ Acquired 8 matter. 01394_ T0-H6Y(h): "I'll hold them off! Go on ahead or try to find another way!" 01396_ HV Slug penetrates Wall. 01411_ Hacking Suite destroyed. 01411_ System corrupted by crushing effect (+1). 01411_ Knocked back. 01413_ as-73718 destroyed. 01413_ Aluminum Leg destroyed. 01416_ Ion Engine destroyed. 01416_ Destroyed Ion Engine. 01416_ as-20392 destroyed. 01416_ as-04885 destroyed. 01416_ Aluminum Leg destroyed. 01418_ Assault Rifle destroyed. 01418_ Grenade Launcher destroyed. 01420_ as-09393 destroyed. Map ----- +----------------------------------------------------+ | ??? ?????????????????????????????????????????????? | | ??? ?????????????????????????????????????????????? | | ??? ?????????????????????????????????????????????? | | ??? ?????????????????????????????????????????????? | | ??# ?????????????????????????????????????????????? | | ?? #????????????????????????????????????????????? | | ??# #????????????????????????????????????????????? | | ??# #????????????????? ##????????????????????????? | | ??# #????????????#?? ##???????????????????????? | | ??# #??????????# ##??????????????????????? | | ??# #??????#### #??????????????????????? | | ??# #?????## #??????????????????????? | | ??# ####### ???????????????????????? | | ### # """ ?????????????????????????? | | ##### #? """ #???????????????????????????? | | ## ##???# #?# """ #????????????????????????????? | | ?# ##???# ### #?????????????????????????????? | | ## ##??# #???????????????????????????????? | | ######### ##????????#??????????????????????? | | #???## ##??????#?%#??????????????????????? | | #???# #??#####" #??????????????????????? | | ## #??# #??# #??????????????????????? | | ### #??? ??# ?????????????????????????? | | !#??# #???# ## !#?#####?????????????????????? | | %#???# ##???# %#?# ###???????????????????? | | |[ ???###????###### #?# @ ########????????????? | | ?????????????# ## %aa ?????????? | | < #????????????# a a #########???????????? | | #????????????# aa # #???????????????????? | | #????????????### a ###???????????????????? | | ######??????????????## ##?????????????????????? | | ?????????????????????# #???????????????????????? | | ?????????????????????####????????????????????????? | | | | | | | | | | | | | | | | | | | | | | | | | | | | | | | | | | | +----------------------------------------------------+ Best States ------------- Heat Dissipation 25 Energy Generation 10 Energy Capacity 250 Matter Stores 300 Matter Capacity 400 Sight Range 16 Terrain Scan Density 10 Evasion (%) 40 Targeting Accuracy 5 Offensive Hacking 10 Item Schematics ----------------- None Robot Schematics ------------------ None Fabricated ------------ Nothing Alien Tech Used ----------------- None Achievements -------------- None Challenges ------------ None Game ------ Seed ThermalLaserDrive Manual? 0 Play Time 00:09:22 Cumulative 255.2 hours Start 2020.06.21 @ 17:29:43 End 2020.06.21 @ 17:36:48 Sessions 1 Manual Loads 0 Difficulty Rogue Special Mode None Game No. 407 Rogue 407 Adventurer 0 Explorer 0 Win Type - Total 5 Types 3/0/1/1/0/0/0 Lore% 82 Gallery% 82 Achievement% 61 Wizard Run 0 Options --------- ASCII 0 Keyboard 1 Movement Numpad Keybinds 0 Fullscreen 2 Font 18/X11Bold Map View 76x50 Tactical HUD 1 Map Filters NONE Filters NONE Steam 1 RUN: 725328d1-b4a7-45c5-b6ea-5916817b3bbd